fUSD/lending_fUSD_20251023
["ID","MTS","AMOUNT","RATE_DAILY","PERIOD"]
[392131257,1761192644197,-318.83177279,0.00044899,120]
[392131258,1761192644207,-151.0,0.000449,120]
[392131259,1761192644226,-151.0,0.000449,120]
[392131260,1761192644238,-151.0,0.000449,120]
[392131261,1761192644248,-151.0,0.000449,120]
[392131262,1761192644258,-151.0,0.000449,120]
[392131263,1761192644268,-9466.81058206,0.000449,15]
[392131264,1761192644278,-530.18623245,0.000449,17]
[392131265,1761192644288,-220.85198777,0.000449,22]
[392131266,1761192644298,-238.17340831,0.000449,2]
[392131267,1761192644308,-366.57439595,0.000449,2]
[392131268,1761192644319,-169.22769173,0.0004494,28]
[392131269,1761192644329,-1000.0,0.0004495,14]
[392131270,1761192644339,-150.0,0.00044973,10]
[392131271,1761192644349,-157.33397488,0.00044973,10]
[392131272,1761192644360,-150.0,0.00044986,30]
[392131273,1761192644370,-150.0,0.00044986,30]
[392131274,1761192644380,-150.0,0.00044986,30]
[392131275,1761192644390,-150.0,0.00044986,30]
[392131276,1761192644400,-150.0,0.00044986,30]
[392131277,1761192644410,-150.0,0.00044986,30]
[392131278,1761192644420,-150.0,0.00044986,30]
[392131279,1761192644431,-150.0,0.00044986,30]
[392131280,1761192644441,-150.0,0.00044986,30]
[392131281,1761192644451,-150.0,0.00044986,30]
[392131282,1761192644460,-150.0,0.00044986,30]
[392131283,1761192644470,-150.0,0.00044986,30]
[392131284,1761192644480,-300.0,0.00044999,30]
[392131285,1761192644489,-151.0,0.00044999,120]
[392131286,1761192644499,-151.0,0.00044999,120]
[392131287,1761192644509,-151.0,0.00044999,120]
[392131288,1761192644519,-154.963058,0.00044999,120]
[392131289,1761192644529,-151.0,0.00044999,120]
[392131290,1761192644539,-270.18472,0.00044999,120]
[392131291,1761192644549,-151.0,0.00044999,120]
[392131292,1761192644559,-500.0,0.00044999,120]
[392131293,1761192644569,-500.0,0.00044999,120]
[392131294,1761192644578,-500.0,0.00044999,120]
[392131295,1761192644588,-500.0,0.00044999,120]
[392131296,1761192644598,-500.0,0.00044999,120]
[392131297,1761192644607,-500.0,0.00044999,120]
[392131298,1761192644617,-500.0,0.00044999,120]
[392131299,1761192644627,-500.0,0.00044999,120]
[392131300,1761192644636,-794.8,0.00044999,120]
[392131301,1761192644647,-794.8,0.00044999,120]
[392131302,1761192644656,-794.8,0.00044999,120]
[392131303,1761192644666,-794.8,0.00044999,120]
[392131304,1761192644676,-794.8,0.00044999,120]
[392131305,1761192644686,-794.8,0.00044999,120]
[392131306,1761192644695,-794.8,0.00044999,120]
[392131307,1761192644705,-794.8,0.00044999,120]
[392131308,1761192644714,-794.8,0.00044999,120]
[392131309,1761192644724,-794.8,0.00044999,120]
[392131310,1761192644734,-794.8,0.00044999,120]
[392131311,1761192644743,-794.8,0.00044999,120]
[392131312,1761192644753,-794.8,0.00044999,120]
[392131313,1761192644763,-794.8,0.00044999,120]
[392131314,1761192644773,-794.8,0.00044999,120]
[392131315,1761192644782,-794.8,0.00044999,120]
[392131316,1761192644792,-794.8,0.00044999,120]
[392131317,1761192644802,-794.8,0.00044999,120]
[392131318,1761192644811,-794.92,0.00044999,120]
[392131319,1761192644820,-240.68518666,0.00045,18]
[392131320,1761192644830,-684529.84724133,0.00045,120]
[392131321,1761192644840,-10007.44,0.00045,120]
[392131322,1761192644849,-1000000.0,0.00045,120]
[392131323,1761192644859,-179.93545887,0.00045,2]
[392131324,1761192644869,-251.37,0.00045,30]
[392131325,1761192644879,-150.0,0.00045,120]
[392131326,1761192644888,-680.0,0.00045,100]
[392131327,1761192644898,-532.40347783,0.00045,120]
[392131328,1761192644908,-673885.79601824,0.00045,120]
[392131329,1761192644928,-672.7092971,0.00045,120]
[392131330,1761192644957,-328.245965,0.00044,120]
[392131331,1761192644966,-50268.04195228,0.00045,120]
[392131332,1761192644979,-10231.70560332,0.00045,120]
[392131333,1761192644991,-264941.74712906,0.00045,120]
[392131334,1761192645000,-33158.73,0.00045,14]
[392131335,1761192645009,-2000.0,0.00045,120]
[392131336,1761192645019,-65539.52287152,0.00045,120]
[392131337,1761192645031,-104425.98841872,0.00045,120]
[392131338,1761192645196,-151.0,0.00038155,2]
[392131339,1761192645206,-297.86645906,0.0004399,120]
[392131340,1761192645408,-30.37950594,0.0004399,120]
[392131341,1761192645418,-328.245965,0.0004399,120]
[392131342,1761192645428,-328.245965,0.00043999,120]
[392131343,1761192645439,-328.245965,0.00043999,120]
[392131344,1761192645449,-328.245965,0.00044,120]
[392131345,1761192645459,-328.245965,0.00044,120]
[392131346,1761192645468,-660725.00569674,0.00045,120]
[392131347,1761192645957,-1057.4829625,0.00043476,2]
[392131348,1761192645969,-132.7510375,0.00043476,2]
[392131349,1761192645978,-151.0,0.0004399,120]
[392131350,1761192645987,-151.0,0.0004399,120]
[392131351,1761192645996,-151.0,0.00043999,120]
[392131352,1761192646006,-151.0,0.00043999,120]
[392131353,1761192646015,-151.0,0.00044,120]
[392131354,1761192646024,-151.0,0.00044,120]
[392131355,1761192646033,-1829.2489625,0.00045,120]
[392131356,1761193022671,198.81253058,0.00024966,120]
[392131357,1761193083209,2500.0,0.00024949,120]
[392131358,1761193083317,1559.89131795,0.00025949,120]
[392131359,1761193204575,169.0,0.00035873,120]
[392131360,1761193330891,358.04,0.00013699,2]
[392131363,1761193344077,-165.7930362,0.00020187,2]
[392131365,1761193508252,1291368.05401162,0.00015,2]
[392131366,1761193524365,-192.2469638,0.00020187,2]
[392131367,1761193524387,-11.03932602,0.000202,2]
[392131368,1761193525859,-239.18371767,0.000202,2]
[392131369,1761193527457,-193.46494146,0.000202,2]
[392131371,1761193539334,-56.90884183,0.000202,2]
[392131372,1761193539356,-121.63725965,0.00021197,2]
[392131373,1761193547582,4116.06827295,0.0001995,15]
[392131374,1761193548886,-235.34959081,0.0002,2]
[392131375,1761193551635,-187.83020545,0.0002,2]
[392131376,1761193553336,-176.94553899,0.0002,2]
[392131377,1761193555196,-257.52867442,0.0002,2]
[392131378,1761193557966,-271.49874107,0.0002,2]
[392131379,1761193559721,-178.17581987,0.000199,2]
[392131380,1761193561782,-170.55962723,0.000199,2]
[392131381,1761193564820,-207.11704356,0.000199,2]
[392131382,1761193566348,-165.838802,0.000199,2]
[392131383,1761193584905,-338.03571405,0.000199,2]
[392131384,1761193588152,-388.69422709,0.000199,2]
[392131385,1761193590787,-203.03436496,0.000199,2]
[392131386,1761193597529,-215.60634023,0.000199,2]
[392131388,1761193613720,-207.86173315,0.000199,2]
[392131389,1761193615324,-284.39365977,0.000199,2]
[392131390,1761193618601,-283.88777509,0.000199,2]
[392131391,1761193618627,-148.43878906,0.00019999,2]
[392131392,1761193620852,-287.07983818,0.0002,2]
[392131393,1761193622553,-182.0,0.00019999,2]
[392131394,1761193622575,-220.79877718,0.0002,2]
[392131395,1761193624805,-79.20122282,0.0002,2]
[392131396,1761193624827,-420.79877718,0.0002,2]
[392131397,1761193626353,-584.281061,0.0002,2]
[392131398,1761193627919,-179.42433632,0.0002,2]
[392131399,1761193638207,-3951.04051901,0.0002,2]
[392131400,1761193644366,-214.38168491,0.0002,2]
[392131401,1761193646450,-325.45803766,0.0002,2]
[392131402,1761193647116,-243.97610411,0.0002,2]
[392131403,1761193649635,-178.14448091,0.0002,2]
[392131405,1761193652227,930.21939425,0.00016,2]
[392131406,1761193652266,-192.31659931,0.0002,2]
[392131407,1761193653825,-232.79403683,0.0002,2]
[392131408,1761193655645,-165.2690233,0.00019999,2]
[392131409,1761193658333,-508.57332408,0.00019999,2]
[392131410,1761193661299,-182.29466427,0.00019999,2]
[392131411,1761193664099,-192.13244164,0.00019999,2]
[392131412,1761193666110,-151.73054671,0.00019999,2]
[392131413,1761193666133,-19.07347062,0.0002,2]
[392131414,1761193670647,-362.3242838,0.0002,2]
[392131415,1761193671836,4782.61181848,0.0002,4]
[392131416,1761193672784,-151.93086821,0.000199,2]
[392131417,1761193672816,-76.89265616,0.0002,2]
[392131418,1761193677375,1437379.04384653,0.00015,2]
[392131419,1761193678657,-292.48367328,0.0002,2]
[392131420,1761193681841,-193.69127926,0.0002,2]
[392131421,1761193683646,-176.12049052,0.00019999,2]
[392131422,1761193685196,-123.87950948,0.00019999,2]
[392131423,1761193685218,-81.29978627,0.0002,2]
[392131424,1761193687291,-205.77206204,0.0002,2]
[392131427,1761193704345,-250.75978487,0.0002,2]
[392131428,1761193704375,-24.23919706,0.0002,2]
[392131429,1761193706334,-193.80587328,0.0002,2]
[392131430,1761193707909,-331.19540617,0.0002,2]
[392131431,1761193710066,-210.80708936,0.0002,2]
[392131432,1761193715886,-324.4472438,0.00019999,2]
[392131435,1761193725109,2114.6090372,0.00015,2]
[392131436,1761193726527,-175.5527562,0.00019999,2]
[392131437,1761193726549,-0.91650312,0.00019999,2]
[392131438,1761193729827,-233.31525519,0.00019999,2]
[392131439,1761193731597,-265.76824169,0.00019999,2]
[392131440,1761193731625,-34.23175831,0.00019999,2]
[392131441,1761193747151,-604.4030146,0.00019899,2]
[392131442,1761193749096,-2048.45100228,0.00019899,2]
[392131443,1761193750695,-272.18806479,0.00019899,2]
[392131444,1761193752727,-241.49313304,0.00019899,2]
[392131445,1761193754806,-203.31234584,0.00019899,2]
[392131446,1761193756092,-496.56359566,0.00019899,2]
[392131447,1761193756112,-250.0,0.00019949,2]
[392131448,1761193756135,-465.76824169,0.00019999,2]
[392131449,1761193756156,-500.0,0.00019999,2]
[392131450,1761193756176,-310.24812383,0.00019999,2]
[392131451,1761193756195,-568.36104353,0.00019999,2]
[392131452,1761193756220,-500.0,0.00019999,2]
[392131453,1761193756240,-500.0,0.00019999,2]
[392131454,1761193756263,-500.0,0.00019999,2]
[392131455,1761193756289,-500.0,0.00019999,2]
[392131456,1761193756312,-500.0,0.00019999,2]
[392131457,1761193756335,-500.0,0.00019999,2]
[392131458,1761193756356,-500.0,0.00019999,2]
[392131459,1761193756380,-500.0,0.00019999,2]
[392131460,1761193756403,-500.0,0.00019999,2]
[392131461,1761193756424,-500.0,0.00019999,2]
[392131462,1761193756444,-500.0,0.00019999,2]
[392131463,1761193756466,-500.0,0.00019999,2]
[392131464,1761193756487,-500.0,0.00019999,2]
[392131465,1761193756508,-500.0,0.00019999,2]
[392131466,1761193756529,-500.0,0.00019999,2]
[392131467,1761193756551,-500.0,0.00019999,2]
[392131468,1761193756572,-500.0,0.00019999,2]
[392131469,1761193756593,-500.0,0.00019999,2]
[392131470,1761193756615,-500.0,0.00019999,2]
[392131471,1761193756636,-395.67313529,0.00019999,2]
[392131472,1761193762135,-104.32686471,0.00019999,2]
[392131473,1761193762158,-500.0,0.00019999,2]
[392131474,1761193762179,-500.0,0.00019999,2]
[392131475,1761193762203,-500.0,0.00019999,2]
[392131476,1761193762226,-500.0,0.00019999,2]
[392131477,1761193762250,-500.0,0.00019999,2]
[392131478,1761193762273,-500.0,0.00019999,2]
[392131479,1761193762298,-500.0,0.00019999,2]
[392131480,1761193762322,-429.23368918,0.00019999,2]
[392131481,1761193762345,-500.0,0.00019999,2]
[392131482,1761193762365,-500.0,0.00019999,2]
[392131483,1761193762386,-500.0,0.00019999,2]
[392131484,1761193762407,-500.0,0.00019999,2]
[392131485,1761193762427,-500.0,0.00019999,2]
[392131486,1761193762448,-500.0,0.00019999,2]
[392131487,1761193762469,-500.0,0.00019999,2]
[392131488,1761193762490,-500.0,0.00019999,2]
[392131489,1761193762513,-500.0,0.00019999,2]
[392131490,1761193762534,-500.0,0.00019999,2]
[392131491,1761193762556,-500.0,0.00019999,2]
[392131492,1761193762578,-500.0,0.00019999,2]
[392131493,1761193762600,-500.0,0.00019999,2]
[392131494,1761193762620,-500.0,0.00019999,2]
[392131495,1761193762641,-649.99999999,0.00019999,2]
[392131496,1761193762661,-1977.22415609,0.0002,2]
[392131497,1761193762680,-1516.42234905,0.0002,2]
[392131498,1761193762700,-16975.79620098,0.0002,2]
[392131499,1761193769130,-5839.44505006,0.0002,2]
[392131500,1761193769153,-4648.4548686,0.0002,2]
[392131501,1761193769174,-3950.0,0.0002,2]
[392131502,1761193769196,-35203.57868134,0.0002,2]
[392131503,1761193772946,190.73,0.00016712,2]
[392131504,1761193804203,982.0,0.00027397,120]
[392131509,1761193831539,-300.0,0.00019999,2]
[392131511,1761193831548,-1200.0,0.00019999,2]
[392131513,1761193831558,-251.0,0.00019999,2]
[392131515,1761193831568,-300.0,0.00019999,2]
[392131517,1761193831577,-300.0,0.00019999,2]
[392131518,1761193831587,-705.0,0.00019999,2]
[392131519,1761193831597,-8248.12637932,0.0002,2]
[392131520,1761193831932,-952.19999682,0.0002,2]
[392131547,1761193838085,-25455.95942064,0.0002,2]
[392131549,1761193838095,-14448.73495734,0.0002,2]
[392131557,1761193840290,-1.6e-07,0.0002,2]
[392131558,1761193840303,-7233.9427413,0.0002,2]
[392131559,1761193840315,-29455.95083675,0.0002,2]
[392131560,1761193840328,-8712.27079562,0.0002,2]
[392131561,1761193840338,-356.48240102,0.00020259,2]
[392131562,1761193840347,-375.94628807,0.00020699,2]
[392131563,1761193840356,-500.0,0.00020699,2]
[392131564,1761193840366,-346.44445843,0.00020699,2]
[392131565,1761193840375,-270.70659284,0.00020699,2]
[392131566,1761193840386,-500.0,0.00020699,2]
[392131567,1761193840398,-500.0,0.00020699,2]
[392131568,1761193840408,-16735.24709342,0.000207,2]
[392131569,1761193840418,-39662.08583666,0.0002085,2]
[392131570,1761193840427,-167.82756552,0.00020973,2]
[392131571,1761193840437,-36417.91580491,0.00021,2]
[392131572,1761193840447,-6500.96828797,0.00021,3]
[392131573,1761193840457,-417.0,0.000211,2]
[392131574,1761193840466,-24591.56404951,0.000215,2]
[392131575,1761193840475,-1680.0,0.00021777,2]
[392131576,1761193840485,-420.0,0.00021777,2]
[392131577,1761193840494,-420.0,0.00021777,2]
[392131578,1761193840504,-420.0,0.00021777,2]
[392131579,1761193840513,-1680.0,0.00021881,2]
[392131580,1761193840522,-250.0,0.00021889,2]
[392131581,1761193840532,-418.44571756,0.00021889,2]
[392131582,1761193840699,-2500.0,0.00021889,2]
[392131583,1761193840710,-1601.30648431,0.0002189,2]
[392131584,1761193840719,-4679.09939544,0.000219,2]
[392131585,1761193840728,-5000.0,0.00021918,2]
[392131586,1761193840737,-300.0,0.00021999,2]
[392131587,1761193840746,-151.52530715,0.00021999,2]
[392131588,1761193840755,-362.27820441,0.00021999,2]
[392131589,1761193840764,-2500.0,0.00021999,2]
[392131590,1761193840774,-4000.0,0.00021999,2]
[392131591,1761193840783,-2500.0,0.00021999,2]
[392131592,1761193840794,-2191.86049045,0.00021999,2]
[392131593,1761193840807,-169055.07439054,0.00022,4]
[392131594,1761193840824,-124.81819953,0.00022,4]
[392131595,1761193840834,-417.83180047,0.00022,2]
[392131601,1761193843747,-1680.71313557,0.00022,2]
[392131602,1761193843764,-273.4388962,0.00022,2]
[392131619,1761193845827,-27.1084559,0.00022,2]
[392131621,1761194368236,193.02,0.00017955,2]
[392131622,1761194737123,-166.66,0.00021166,2]
[392131623,1761194737142,-278.45107095,0.000212,2]
[392131624,1761194737165,-250.0,0.00021509,2]
[392131625,1761194737190,-343.73396854,0.00021592,2]
[392131626,1761194737211,-166.66,0.00021611,2]
[392131627,1761194737232,-215.27123608,0.00021635,2]
[392131628,1761194737252,-250.0,0.00021735,2]
[392131629,1761194737272,-879.50225953,0.00021853,2]
[392131630,1761194737292,-215.88569423,0.0002196,2]
[392131631,1761194787191,27509.16585041,0.00035835,120]
[392131632,1761194833090,-434.53495235,0.0002196,2]
[392131633,1761194844103,-144.52935342,0.0002196,2]
[392131634,1761194844124,-250.0,0.00021978,2]
[392131635,1761194844145,-1200.0,0.00021997,2]
[392131636,1761194844165,-300.0,0.00021999,2]
[392131637,1761194844189,-1200.0,0.00021999,2]
[392131638,1761194844210,-300.0,0.00021999,2]
[392131639,1761194844231,-180.0,0.00021999,2]
[392131640,1761194844251,-1700.05224314,0.00022,2]
[392131641,1761194844271,-160.97,0.00022,2]
[392131642,1761194844290,-1493.30641,0.00022,2]
[392131643,1761194844310,-666.0,0.00022004,3]
[392131644,1761194844331,-166.66,0.00022057,30]
[392131645,1761194844351,-215.27123608,0.00022368,2]
[392131646,1761194844370,-200.0,0.00022371,2]
[392131647,1761194844388,-223.29,0.00022477,2]
[392131648,1761194844411,-166.66,0.00022502,30]
[392131649,1761194844430,-4.88597882,0.00022556,2]
[392131650,1761194885615,-152.96882077,0.00022556,2]
[392131651,1761194885640,-74.89907975,0.00022556,2]
[392131652,1761194885713,-76.80005416,0.00022556,2]
[392131653,1761194908551,-185.54402118,0.00022556,2]
[392131654,1761194908576,-516.80964162,0.0002271,2]
[392131655,1761194908602,-200.0,0.00022828,2]
[392131656,1761194908633,-1200.0,0.00022898,2]
[392131657,1761194908661,-300.0,0.00022898,2]
[392131658,1761194908687,-180.0,0.00022898,2]
[392131659,1761194908713,-1600.0,0.00022898,2]
[392131660,1761194908740,-1360.29,0.00022899,2]
[392131661,1761194908769,-500.0,0.00022899,2]
[392131662,1761194908798,-500.0,0.00022899,2]
[392131663,1761194908824,-500.0,0.00022899,2]
[392131664,1761194908856,-500.0,0.00022899,2]
[392131665,1761194908882,-500.0,0.00022899,2]
[392131666,1761194908908,-500.0,0.00022899,2]
[392131667,1761194908935,-500.0,0.00022899,2]
[392131668,1761194908960,-500.0,0.00022899,2]
[392131669,1761194908986,-500.0,0.00022899,2]
[392131670,1761194909012,-557.92336892,0.00022899,2]
[392131671,1761194909039,-500.0,0.00022899,2]
[392131672,1761194909065,-557.92336892,0.00022899,2]
[392131673,1761194909092,-500.0,0.00022899,2]
[392131674,1761194909120,-500.0,0.00022899,2]
[392131675,1761194909147,-226.29033874,0.00022899,2]
[392131676,1761194909174,-500.0,0.00022899,2]
[392131677,1761194909202,-500.0,0.00022899,2]
[392131678,1761194909227,-191.31984103,0.00022899,2]
[392131679,1761194909253,-500.0,0.00022899,2]
[392131680,1761194909284,-500.0,0.00022899,2]
[392131681,1761194909311,-500.0,0.00022899,2]
[392131682,1761194909340,-500.0,0.00022899,2]
[392131683,1761194909368,-500.0,0.00022899,2]
[392131684,1761194909396,-500.0,0.00022899,2]
[392131685,1761194909423,-500.0,0.00022899,2]
[392131686,1761194909450,-500.0,0.00022899,2]
[392131687,1761194909478,-500.0,0.00022899,2]
[392131688,1761194909510,-500.0,0.00022899,2]
[392131689,1761194909535,-500.0,0.00022899,2]
[392131690,1761194909561,-500.0,0.00022899,2]
[392131691,1761194909591,-500.0,0.00022899,2]
[392131692,1761194909618,-358.16203323,0.00022899,2]
[392131693,1761194909645,-500.0,0.00022899,2]
[392131694,1761194909671,-500.0,0.00022899,2]
[392131695,1761194909697,-500.0,0.00022899,2]
[392131696,1761194909724,-500.0,0.00022899,2]
[392131697,1761194909749,-500.0,0.00022899,2]
[392131698,1761194909776,-500.0,0.00022899,2]
[392131699,1761194909801,-19162.51261616,0.000229,2]
[392131700,1761194909826,-166.66,0.00022948,30]
[392131701,1761194909851,-250.0,0.00022965,2]
[392131702,1761194909875,-626.62440598,0.00023,7]
[392131703,1761194909900,-434.63925577,0.00023,2]
[392131704,1761194909927,-995.66217528,0.00023,2]
[392131705,1761194909952,-710.06198824,0.00023,2]
[392131706,1761194909979,-2555.26027862,0.000231,2]
[392131707,1761194910006,-215.27123608,0.000231,2]
[392131708,1761194910031,-1360.29,0.00023173,2]
[392131709,1761194910059,-151.0,0.00023186,2]
[392131710,1761194910085,-51558.04221674,0.000232,2]
[392131711,1761194910110,-2116.67999247,0.000232,2]
[392131712,1761194910136,-150.0,0.00023282,2]
[392131713,1761194910310,-500.0,0.00023332,2]
[392131714,1761194910336,-263.16240165,0.00023332,2]
[392131715,1761194910363,-242.5111209,0.00023332,2]
[392131716,1761194910386,-500.0,0.00023332,2]
[392131717,1761194910411,-239.49461499,0.00023332,2]
[392131718,1761194910434,-116369.85359418,0.00023333,2]
[392131719,1761194910457,-11533.68146324,0.00023333,7]
[392131720,1761194910481,-641.73489107,0.00023373,2]
[392131721,1761194910518,-517.38886568,0.00023373,2]
[392131722,1761194910546,-330.07541042,0.00023373,2]
[392131723,1761194910572,-500.0,0.00023373,2]
[392131724,1761194910599,-166.66,0.00023394,30]
[392131725,1761194910626,-1360.29,0.00023447,2]
[392131726,1761194910652,-200.0,0.000235,2]
[392131727,1761194910677,-1360.29,0.00023721,2]
[392131728,1761194910702,-1423.0,0.00023722,2]
[392131729,1761194910728,-151.21317917,0.00023804,5]
[392131730,1761194910752,-420.0,0.00023906,2]
[392131731,1761194910778,-197.20383623,0.00023918,2]
[392131732,1761194910804,-376.88923678,0.00023918,2]
[392131733,1761194910830,-1360.29,0.00023995,2]
[392131734,1761194910855,-3600.0,0.00024,2]
[392131735,1761194910880,-16011.38201283,0.00024,2]
[392131736,1761194910912,-1493.30642,0.00024,2]
[392131737,1761194910944,-1680.0,0.00024018,2]
[392131738,1761194910972,-400.4583929,0.00024029,2]
[392131739,1761194911001,-250.0,0.00024156,2]
[392131740,1761194911028,-1323.315309,0.00024156,2]
[392131741,1761194911057,-1317.90908852,0.00024156,2]
[392131742,1761194911084,-250.0,0.00024156,2]
[392131743,1761194911110,-300.0,0.00024156,2]
[392131744,1761194911144,-416.60579323,0.0002421,2]
[392131745,1761194911171,-3650.55030304,0.0002421,2]
[392131746,1761194911199,-1360.29,0.00024269,2]
[392131747,1761194911225,-1360.29,0.00024543,2]
[392131748,1761194911250,-438.14203093,0.0002465,2]
[392131749,1761194911276,-2045.0,0.000248,4]
[392131750,1761194911301,-545.0382072,0.00024812,2]
[392131751,1761194911329,-250.0,0.00024812,2]
[392131752,1761194911355,-1360.29,0.00024817,2]
[392131753,1761194911383,-1184.0,0.0002486,2]
[392131754,1761194911413,-420.0,0.0002486,2]
[392131755,1761194911442,-500.0,0.00024932,2]
[392131756,1761194911468,-404.22698631,0.00025,2]
[392131757,1761194911497,-4677.57822888,0.00025,3]
[392131758,1761194911524,-503.18564104,0.00025,7]
[392131759,1761194911554,-1360.29,0.00025091,2]
[392131760,1761194911581,-1762.81965036,0.00025133,2]
[392131761,1761194911607,-1360.29,0.00025365,2]
[392131762,1761194911631,-323.75,0.0002555,2]
[392131763,1761194911657,-1360.29,0.00025639,2]
[392131764,1761194911681,-17477.69865381,0.00025879,2]
[392131765,1761194911706,-1360.36930369,0.00025913,2]
[392131766,1761194911732,-587.0,0.00025977,2]
[392131767,1761194911759,-1493.30642,0.00026,2]
[392131768,1761194911787,-2351.0,0.00026222,2]
[392131769,1761194911812,-190.43,0.00026279,2]
[392131770,1761194911837,-358.04,0.00026676,2]
[392131771,1761194911865,-587.0,0.00026989,2]
[392131772,1761194911889,-250.0,0.00027,2]
[392131773,1761194911914,-278.24029177,0.0002739,2]
[392131774,1761194911941,-300.0,0.00027397,2]
[392131775,1761194911970,-19380.5073826,0.0002799,2]
[392131776,1761194911996,-53462.50694866,0.00028,2]
[392131777,1761194912028,-1493.30641,0.00028,2]
[392131778,1761194912055,-750.0,0.00028229,2]
[392131779,1761194912082,-2422.56342283,0.00028243,2]
[392131780,1761194912108,-208.16391131,0.00028253,4]
[392131781,1761194912135,-3292.0,0.00028628,2]
[392131782,1761194912160,-1276.61863291,0.00028646,15]
[392131783,1761194912186,-2422.56342283,0.0002899,2]
[392131784,1761194912213,-566.27172851,0.00029,5]
[392131785,1761194912241,-902.00127801,0.00029,5]
[392131786,1761194912267,-823.0,0.00029301,2]
[392131787,1761194912296,-780.605,0.00029385,22]
[392131788,1761194912324,-192.18930112,0.000299,15]
[392131789,1761194912350,-233.48980064,0.0002999,2]
[392131790,1761194912375,-29070.761074,0.0002999,2]
[392131791,1761194912399,-35972.89538835,0.0003,5]
[392131792,1761194912423,-491.90923731,0.0003,120]
[392131793,1761194912447,-19561.40069525,0.0003,2]
[392131794,1761194912471,-2073.59,0.0003,30]
[392131795,1761194912496,-1493.30642,0.0003,2]
[392131796,1761194912522,-153.88510384,0.0003013,120]
[392131797,1761194912550,-7267.69026849,0.00030611,2]
[392131798,1761194912578,-14936.87,0.0003062,2]
[392131799,1761194912602,-1851.87,0.0003066,2]
[392131800,1761194912627,-2422.56342283,0.00030878,2]
[392131801,1761194912651,-3898.78613201,0.00030888,60]
[392131802,1761194912677,-4845.12684566,0.0003099,2]
[392131803,1761194912701,-10358.14853493,0.00031,2]
[392131804,1761194912727,-235.37693988,0.00031076,2]
[392131805,1761194912753,-2422.56342283,0.00031245,2]
[392131806,1761194912779,-4609.0,0.00031255,3]
[392131807,1761194912932,-295.0,0.00031812,2]
[392131808,1761194912960,-4845.12684566,0.0003199,2]
[392131809,1761194912985,-5749.49281689,0.00032,5]
[392131810,1761194913009,-1493.30642,0.00032,2]
[392131811,1761194913034,-476.23156132,0.00032232,30]
[392131812,1761194913060,-735.91626602,0.00032802,2]
[392131813,1761194913084,-358.04,0.00033165,2]
[392131814,1761194913110,-1379.0,0.00034123,3]
[392131815,1761194913135,-2422.56342283,0.000347,2]
[392131816,1761194913159,-381.90557588,0.0003471,2]
[392131817,1761194913183,-153.0,0.00034862,90]
[392131818,1761194913207,-168.88,0.00034965,14]
[392131819,1761194913231,-998.56769532,0.00035118,20]
[392131820,1761194913254,-205.88052591,0.0003583,30]
[392131821,1761194913281,-250.0,0.00036252,2]
[392131822,1761194913309,-250.0,0.00036252,2]
[392131823,1761194913337,-1000.0,0.00036356,2]
[392131824,1761194913363,-2422.56342283,0.00036367,3]
[392131825,1761194913389,-5671.71,0.00036377,2]
[392131826,1761194913413,-500.0,0.00036453,7]
[392131827,1761194913440,-192.99528511,0.00037032,2]
[392131828,1761194913466,-2422.56342283,0.0003733,3]
[392131829,1761194913491,-1396.0,0.0003734,5]
[392131830,1761194913518,-177.26,0.0003734,2]